Cogmind - Beta 14 @@@ ROGUE MODE // 2024.08.22 @ 23:56:02 Player: Olafz Result: Destroyed by Y-45 Defender with Beam Rifle Performance ------------- Evolutions (1) 500 Regions Visited (3) 600 Robots Destroyed (8) 40 Value Destroyed (227) 227 Prototype IDs (0) 0 Alien Tech Used (0) 0 Bonus (0) 0 TOTAL SCORE: 1367 Bonus ------- None Cogmind --------- Core Integrity 0/400 Matter 300/300 Energy 95/100 System Corruption 0% Temperature Cool (27) Movement Core (150) Ox2 Location -9/Materials Parts ------- > --- POWER (1) -------- (None) > --- PROPULSION (2) --- (None) > --- UTILITY (4) ------ Small Storage Unit > --- WEAPON (2) ------- Hammer > --- INVENTORY (8) ---- Light Ion Engine Aluminum Leg Small Laser Grenade Launcher Peak State ------------ > --- POWER ------------ Light Ion Engine > --- PROPULSION ------- Aluminum Leg Aluminum Leg > --- UTILITY ---------- Small Storage Unit > --- WEAPON ----------- Medium Laser Medium Laser > --- INVENTORY -------- Light Ion Engine [Rating: 6] Favorites ----------- Power Light Ion Engine Engine Light Ion Engine Propulsion Aluminum Leg Leg Aluminum Leg Utility Small Storage Unit Storage Small Storage Unit Weapon Medium Laser Energy Gun Medium Laser Impact Weapon Hammer Build | -11 -10 -10 -9 ------- Run | Yrd Mat Min Mat Slots Evolved 2 | . . . 2 Power . | . . . . Propulsion . | . . . . Utility 2 | . . . 2 Weapon . | . . . . Parts Attached 10 | 6 . 1 3 Power 2 | 1 . 1 . Engine 2 | 1 . 1 . Core . | . . . . Reactor . | . . . . Propulsion 3 | 2 . . 1 Treads . | . . . . Leg 3 | 2 . . 1 Wheel . | . . . . Hover . | . . . . Flight . | . . . . Utility 1 | 1 . . . Device . | . . . . Storage 1 | 1 . . . Processor . | . . . . Hackware . | . . . . Protection . | . . . . Artifact . | . . . . Weapon 4 | 2 . . 2 Energy Gun 3 | 2 . . 1 Energy Cannon . | . . . . Ballistic Gun . | . . . . Ballistic Cannon . | . . . . Launcher . | . . . . Special Weapon . | . . . . Impact Weapon 1 | . . . 1 Slashing Weapon . | . . . . Piercing Weapon . | . . . . Special Melee Weapon . | . . . . Unidentified Prototypes . | . . . . Parts Lost 7 | . . 1 6 Power 2 | . . 1 1 Propulsion 3 | . . . 3 Utility . | . . . . Weapon 2 | . . . 2 Highest Loss Streak 3 | . . 1 3 To Critical Strikes . | . . . . Average Slot Usage (%) 72 | . 85 85 58 Engine 12 | . 14 14 10 Leg 22 | . 28 28 15 Storage 12 | . 14 14 11 Energy Gun 20 | . 28 28 12 Impact Weapon 3 | . . . 8 Peak Build Rating 6 | 6 6 6 6 Average Rating 5 | 4 6 5 5 On Entrance 4 | . 6 6 6 Naked Turns . | . . . . Heaviest Build 14 | 12 12 14 14 Greatest Support 20 | 20 20 20 20 Greatest Overweight (x) 2 | . . . 2 Average Overweight (x) . | . . . . Largest Inventory Capacity 8 | 8 8 8 8 Average Capacity 7 | 7 8 8 8 Most Carried 5 | 2 4 5 4 Average Carried 3 | 1 3 4 3 Final Capacity 8 | 8 8 8 8 Final Carried 4 | 2 4 4 4 Class Distribution -------------------- 100% | Mutant Dominant Class ---------------- Mutant | -10/Materials Mutant | -10/Mines Mutant | -9/Materials Resources | -11 -10 -10 -9 ----------- Run | Yrd Mat Min Mat Matter Collected 285 | 119 . 92 74 Remotely . | . . . . Salvage Created 266 | . . 92 174 Parts 10 | . . 1 9 Haulers Intercepted . | . . . . Recyclers Shooed . | . . . . Parts Field Recycled . | . . . . Retrieved Matter . | . . . . Parts Self-Destructed . | . . . . Prevented . | . . . . Kills | -11 -10 -10 -9 ------- Run | Yrd Mat Min Mat Combat Hostiles Destroyed 7 | . . 2 5 Melee 3 | . . . 3 Guns 1 | . . 1 . Classes Destroyed 4 | . . 1 3 Mechanic 1 | . . . 1 Swarmer 2 | . . . 2 Grunt 4 | . . 2 2 Sentry 1 | . . . 1 Best Kill Streak 2 | . . 1 2 Combat Bots Only 1 | . . 1 1 Max Kills in Single Turn 1 | . . 1 1 Gunslinging . | . . . . Exploded . | . . . . Melee 1 | . . . 1 Uniques/NPCs Destroyed . | . . . . Combat | -11 -10 -10 -9 -------- Run | Yrd Mat Min Mat Hostile Shots Fired 118 | . . 18 100 Missed 28 | . . 4 24 Damage Taken 1122 | . . 201 921 Core 460 | . . 54 406 Absorbed by Shields . | . . . . Core Remaining (%) 89 | 100 . 78 . Volleys Fired 23 | . . 14 9 Largest 2 | . . 2 2 Hottest 100 | . . 100 100 Shots Fired 44 | . . 28 16 Gun 44 | . . 28 16 Cannon . | . . . . Launcher . | . . . . Special . | . . . . Kinetic . | . . . . Thermal 44 | . . 28 16 Explosive . | . . . . Electromagnetic . | . . . . Robot Hit Streak 9 | . . 9 4 Robot Miss Streak 2 | . . 2 1 Penetration Max . | . . . . Secondary Targets 1 | . . 1 . Max Gunslinging Chain 1 | . . 1 . Shots Hit Robots 51 | . . 19 32 Core Hits 11 | . . 6 5 Critical Kills 1 | . . . 1 Critical Parts Destroyed 1 | . . . 1 Critical Strikes 10 | . . 5 5 Burn 7 | . . 5 2 Smash 3 | . . . 3 Melee Attacks 33 | . . . 33 Impact 33 | . . . 33 Slashing . | . . . . Piercing . | . . . . Sneak Attacks 1 | . . . 1 Combat Hostiles . | . . . . Follow-up Attacks . | . . . . Damage Inflicted 871 | . . 237 634 Guns 383 | . . 237 146 Cannons . | . . . . Explosions . | . . . . Melee 488 | . . . 488 Ramming . | . . . . Kinetic . | . . . . Thermal 383 | . . 237 146 Explosive . | . . . . Electromagnetic . | . . . . Impact 488 | . . . 488 Slashing . | . . . . Piercing . | . . . . Highest Corruption . | . . . . Average Corruption . | . . . . Corruption Purged . | . . . . Corruption Blocked . | . . . . Overload Shots . | . . . . Overflow Damage 47 | . . . 47 Projectiles . | . . . . Explosions . | . . . . Melee 47 | . . . 47 Knockbacks 2 | . . . 2 Impact 2 | . . . 2 Kinetic . | . . . . Secondary . | . . . . Self-Inflicted Damage . | . . . . Shots . | . . . . Rammed . | . . . . Targets Rammed . | . . . . Kicked . | . . . . Crushed . | . . . . Highest Temperature 372 | . . 372 325 Average Temperature 178 | . . 182 172 Received Heat Transfer 585 | . . 117 468 Effects 5 | . . 3 2 Shutdowns 2 | . . 2 . Interference 2 | . . . 2 Damage (minor) 1 | . . 1 . Siege Activations . | . . . . Robots Corrupted 3 | . . . 3 Combat Hostiles 2 | . . . 2 Parts Fried 4 | . . . 4 Impact Corruptions 5 | . . . 5 Robots Melted 1 | . . 1 . Combat Hostiles 1 | . . 1 . Parts Melted 1 | . . . 1 Heat Transferred 1641 | . . 1073 568 Parts Sabotaged . | . . . . Parts Stolen . | . . . . Parts Stripped . | . . . . Power Chain Reactions . | . . . . Alert | -11 -10 -10 -9 ------- Run | Yrd Mat Min Mat Peak Influence 196 | . . 55 196 Initial 21 | . . . 21 Average 45 | . . 41 82 Maximum Alert Level . | . . . . Low Security (%) 100 | 100 100 100 100 Level 1 . | . . . . Level 2 . | . . . . Level 3 . | . . . . Level 4 . | . . . . Level 5 . | . . . . High Security . | . . . . Max Security . | . . . . Squads Dispatched 2 | . 1 . 1 Investigation 1 | . 1 . . Extermination . | . . . . Reinforcement 1 | . . . 1 Assault . | . . . . Garrison . | . . . . Intercept . | . . . . Searches Triggered . | . . . . Construction Impeded . | . . . . Haulers Reinforced . | . . . . Active Scanning Responses . | . . . . Cargo Convoy Interrupts . | . . . . Stealth | -11 -10 -10 -9 --------- Run | Yrd Mat Min Mat Distress Signals . | . . . . Communications Jammed . | . . . . Distress Signals . | . . . . Times Spotted 18 | . . 5 13 Peak Tracking Total 4 | . . 2 4 Tactical Retreats 6 | . . 1 5 Traps | -11 -10 -10 -9 ------- Run | Yrd Mat Min Mat Traps Triggered 1 | . 1 . . Indirectly . | . . . . Trap Hack Attempts . | . . . . Triggered . | . . . . Disarmed . | . . . . Reprogrammed . | . . . . Reused . | . . . . Traps Extracted . | . . . . Installed . | . . . . Triggered . | . . . . Machines | -11 -10 -10 -9 ---------- Run | Yrd Mat Min Mat Machines Disabled . | . . . . Max in Single Turn . | . . . . Machines Repaired . | . . . . Machines Dismantled . | . . . . Machines Sabotaged . | . . . . Overloaded Fab Kills . | . . . . Hacking | -11 -10 -10 -9 --------- Run | Yrd Mat Min Mat Machines Accessed . | . . . . Terminals . | . . . . Fabricators . | . . . . Repair Stations . | . . . . Recycling Units . | . . . . Scanalyzers . | . . . . Garrison Access . | . . . . Total Hacks . | . . . . Successful . | . . . . Failed . | . . . . Catastrophic . | . . . . Database Lockouts . | . . . . Manual . | . . . . Terminals . | . . . . Fabricators . | . . . . Repair Stations . | . . . . Recycling Units . | . . . . Scanalyzers . | . . . . Garrison Access . | . . . . Terminal Hacks . | . . . . Fabricator Hacks . | . . . . Repair Station Hacks . | . . . . Recycling Unit Hacks . | . . . . Scanalyzer . | . . . . Garrison Access Hacks . | . . . . Unauthorized Hacks . | . . . . Terminals . | . . . . Fabricators . | . . . . Repair Stations . | . . . . Recycling Units . | . . . . Scanalyzers . | . . . . Garrison Access . | . . . . Data Cores Recovered . | . . . . Used . | . . . . Hacking Detections . | . . . . Full Trace Events . | . . . . Feedback Events . | . . . . Feedback Blocked . | . . . . Robot Schematics Acquired . | . . . . Robots Built . | . . . . Authchips . | . . . . Time . | . . . . Total Robot Build Rating . | . . . . Part Schematics Acquired . | . . . . Parts Built . | . . . . Authchips . | . . . . Time . | . . . . Total Part Build Rating . | . . . . Parts Repaired . | . . . . Time . | . . . . Parts Recycled . | . . . . Recycled Matter . | . . . . Retrieved Matter . | . . . . Retrieved Components . | . . . . Parts Scanalyzed . | . . . . Part Schematics Acquired . | . . . . Parts Damaged . | . . . . Bothacking | -11 -10 -10 -9 ------------ Run | Yrd Mat Min Mat Used RIF Installer . | . . . . Robots Hacked . | . . . . Non-combat . | . . . . Combat . | . . . . Robot Hacks Applied . | . . . . Relay Couplers Released . | . . . . Fabnet Peak Effective % . | . . . . Robots Rewired . | . . . . Allies Hacked . | . . . . Hacks Repelled . | . . . . Allies | -11 -10 -10 -9 -------- Run | Yrd Mat Min Mat Total Allies . | . . . . Largest Group . | . . . . Highest-Rated Group . | . . . . Highest-Rated Ally . | . . . . Total Orders . | . . . . Ally Attacks . | . . . . Total Damage . | . . . . Kills . | . . . . Allies Corrupted . | . . . . Allies Melted . | . . . . Intel | -11 -10 -10 -9 ------- Run | Yrd Mat Min Mat Robot Analysis Total . | . . . . Derelict Logs Recovered . | . . . . Drone Launches . | . . . . Drone Recoveries . | . . . . Exploration | -11 -10 -10 -9 ------------- Run | Yrd Mat Min Mat Turns Passed 589 | 55 131 160 243 Spaces Moved 312 | 39 108 88 77 Core 6 | 3 . . 3 Treads . | . . . . Legs 306 | 36 108 88 74 Wheels . | . . . . Hover . | . . . . Flight . | . . . . Fastest Speed 50 | 50 120 120 120 Average Speed 124 | 114 120 120 139 Slowest Speed 190 | 120 120 120 190 Overloaded Moves . | . . . . Propulsion Burnouts . | . . . . Robots Hopped . | . . . . Cave-ins Triggered . | . . . . Exploration Rate (%) 18 | 4 31 31 8 Regions Visited 3 Branch Regions 1 Pre-discovered Areas . | . . . . Known Exits Taken . | . . . . Unknown Exits Taken 3 | 1 1 1 . Scrap Searched . | . . . . Spaces Dug . | . . . . Terrain Destroyed . | . . . . Melee . | . . . . Projectile . | . . . . AOE . | . . . . Terrain Rammed . | . . . . Walls Destroyed . | . . . . Machines Disabled . | . . . . Actions | -11 -10 -10 -9 --------- Run | Yrd Mat Min Mat Total 409 | 46 109 114 140 Wait 28 | . . 11 17 Move 309 | 38 107 87 77 Hop . | . . . . Pick Up 6 | 2 2 1 1 Fast Attach 7 | 6 . . 1 Attach 2 | . . 1 1 Detach . | . . . . Swap 1 | . . . 1 Drop . | . . . . Fire 23 | . . 14 9 Melee 33 | . . . 33 Ram . | . . . . Kick . | . . . . Crush . | . . . . Escape Stasis . | . . . . Rewire . | . . . . Trap . | . . . . Miscellaneous . | . . . . Route ------- -11/Scrapyard -10/Materials -10/Mines -9/Materials History --------- Turn | Location | Event 3 | -11/Scrapyard | Discovered new exit (range 16) 56 | -11/Scrapyard | Entered Materials 151 | -10/Materials | Discovered new exit (range 16) 187 | -10/Materials | Entered Mines 261 | -10/Mines | Met a Derelict bent on vengeance 304 | -10/Mines | Build established: Mutant 331 | -10/Mines | Discovered new exit (range 14) 347 | -10/Mines | Entered Materials 347 | -9/Materials | Evolved 2 slots: Utility x2 509 | -9/Materials | Core integrity fell below 50% 576 | -9/Materials | Core integrity fell below 20% 590 | -9/Materials | Destroyed by Y-45 Defender with Beam Rifle Last Messages --------------- Flight Unit fried. Critical hit (Burn: +37). R-06 Scavenger collects Lgt. Assault Rifle. O-16 Technician: "IFF HANDSHAKE FAILED. SECURING TERMINAL." R-06 Scavenger collects Lgt. Assault Rifle. Critical hit (Burn: +37). ALERT: Hostiles spotted, dispatching reinforcements to Terminal M010. R-06 Scavenger inserts Corrupted Wheel into recycling unit. R-06 Scavenger inserts Particle Gun into recycling unit. R-06 Scavenger inserts Lgt. Assault Rifle into recycling unit. Med. Laser destroyed. Y-45 Defender suffers critical hit (Smash). R-06 Scavenger inserts Lgt. Assault Rifle into recycling unit. Ion Engine destroyed. Aluminum Leg destroyed. Y-45 Defender suffers critical hit (Smash). Y-45 Defender destroyed. R-06 Scavenger collects Beam Rifle. R-06 Scavenger destroyed. Critical hit (Burn: +37). Map ----- +----------------------------------------------------+ | ?????????????????????????????????# #???? | | ?????????????????????????????????# #???? | | ?????????????????????????????????# #???? | | ?????????????????????????????????# #???? | | ?????????????????????????????????# #???? | | ?????????????????????????????????# #???? | | ?????????????????????????????????# #???? | | ?????????????????????????????????# #???? | | ?????????????????????????????????# #???? | | ?????????????????????????????????# #???? | | ??????????????????????????####+### #???? | | ??????????????????????????# #???? | | ??????????????????????????# #???? | | ??????????????????????????# %#???? | | ??????????????????????????# ######+#???? | | ??????????????????????????# #% #???? | | ??????????????????????????# # T #???? | | ??????????????????????????# += [% #???? | | ??????????????????????????# # !#???? | | ?????????????????########## # #???? | | ?????????????????# # # % #???? | | ?????????????????#!!! """ # ####+######? | | ?????????????????#!! "Y" # # [% #? | | ?????????????????#!!*! %= # # #? | | ?????????????????# !%=[ Y %+ #? | | ?????????????????# =""" @# # #? | | ????????????????# """ # # #? | | ????????????????## """ # # #? | | ?????????????????#* [# # #? | | ?????????????????########## # #? | | ??????????????????????????# ###########? | | ??????????????????????????+ #??????????? | | ????????????????????????? # #??????????? | | ?????????????????????????## #??????????? | | ??????????????????????????# #??????????? | | ?????????????????????????? ??????????? | | ?????????????????????????? ??????????? | | ?????????????????????????? ??????????? | | ?????????????????????????? ??????????? | | ?????????????????????????#! ??????????? | | ??????????????????????????? ???????????? | | ?????????????????????????????????????????? | | ?????????????????????????????????????????? | | ?????????????????????????????????????????? | | ?????????????????????????????????????????? | | ?????????????????????????????????????????? | | ?????????????????????????????????????????? | | ?????????????????????????????????????????? | | ?????????????????????????????????????????? | | ?????????????????????????????????????????? | +----------------------------------------------------+ Best States ------------- Heat Dissipation 28 Energy Generation 10 Energy Capacity 250 Matter Stores 300 Matter Capacity 300 Sight Range 16 Terrain Scan Density 10 Evasion (%) 55 Item Schematics ----------------- None Robot Schematics ------------------ None Fabricated ------------ Nothing Alien Tech Used ----------------- None Achievements -------------- None Challenges ------------ None Game ------ Seed AblativePhaseScreen Manual? 0 Play Time 00:06:24 Cumulative 242.2 hours Start 2024.08.22 @ 23:50:03 End 2024.08.22 @ 23:56:02 Sessions 1 Manual Loads 0 Difficulty Rogue Special Mode None Game No. 428 Rogue 426 Adventurer 2 Explorer 0 Win Type - Total 10 Types 8/0/0/2/0/0/0/0/0 Lore% 73 Gallery% 68 Achievement% 56 Wizard Run 0 Options --------- Layout 0 ASCII 0 Keyboard 1 Movement Numpad Keybinds 1 Fullscreen 2 Font 18/SmallcapsGlow Map View 76x50 Zoom Use 0% Tactical HUD 1 Map Filters NONE Filters NONE Steam 1 RUN: c15fe4e6-76e8-4781-a886-f9f1af987b43